bitfinex/quotes_ETHUSD_20260214
["timestamp","ask_amount","ask_price","bid_price","bid_amount"]
[1771111172690,0.51699643,2089.6,2088.9,1.19680214]
[1771111172857,0.51699643,2089.6,2088.8,1.69294355]
[1771111173063,1.00998756,2089.6,2088.8,1.69294355]
[1771111173415,0.51699643,2089.5,2088.8,1.69294355]
[1771111173788,0.49299113,2089.4,2088.6,2.112]
[1771111173999,0.49299113,2089.2,2087.8,1.69355344]
[1771111174168,0.49299113,2089.0,2087.8,1.69355344]
[1771111174489,0.33074979,2088.9,2088.1,0.49612074]
[1771111175058,1.52755777,2088.9,2088.1,0.49612074]
[1771111175261,0.2646051,2088.8,2087.8,0.49612074]
[1771111176597,1.46148687,2088.8,2088.0,0.49612074]
[1771111176891,0.3938541,2088.7,2088.0,0.49612074]
[1771111177303,0.3938541,2088.7,2088.2,0.49612074]
[1771111178401,0.3938541,2088.7,2088.3,1.197146]
[1771111179202,0.3938541,2088.7,2088.3,1.69326674]
[1771111180609,0.30774807,2088.7,2088.4,0.4668984]
[1771111181106,0.30774807,2088.7,2088.2,0.4668984]
[1771111181285,0.30774807,2088.7,2088.1,1.19723615]
[1771111181485,1.50467633,2088.7,2088.1,1.19723615]
[1771111181686,1.50467633,2088.7,2088.0,3.77517506]
[1771111182317,1.99526508,2088.7,2088.0,2.111]
[1771111182475,1.19703136,2088.5,2087.9,0.001]
[1771111182678,0.30774807,2088.7,2087.9,0.4678984]
[1771111182679,1.50466713,2088.7,2087.9,0.4678984]
[1771111183978,1.94101046,2088.7,2087.9,0.4678984]
[1771111184207,1.94101046,2088.7,2087.9,0.001]
[1771111185104,0.46274333,2088.6,2087.9,0.001]
[1771111186480,0.46274333,2088.4,2087.7,0.001]
[1771111186778,0.46274333,2088.2,2087.3,0.001]
[1771111188983,2.07074333,2088.5,2087.3,0.47221067]
[1771111189307,10.03640404,2090.2,2087.3,0.47221067]
[1771111189308,1.47826758,2088.7,2087.5,0.47121067]
[1771111189512,1.47827609,2088.7,2087.9,0.47121067]
[1771111190114,0.28134807,2088.7,2087.9,0.47121067]
[1771111190987,0.28134807,2088.7,2088.0,1.197318]
[1771111191191,0.28134807,2088.7,2088.0,1.66852867]
[1771111192206,0.28134807,2088.7,2088.1,0.47121067]
[1771111192411,0.28134807,2088.7,2088.3,0.47121067]
[1771111193234,0.28134807,2088.7,2088.4,1.19708868]
[1771111193442,1.19659835,2089.3,2088.4,1.66829935]
[1771111193608,1.19659835,2089.3,2088.5,0.47121067]
[1771111194635,1.19765247,2089.4,2088.5,0.47121067]
[1771111195534,0.0011,2089.4,2088.6,1.19697404]
[1771111196334,0.46384333,2089.4,2088.6,1.19697404]
[1771111196911,0.0011,2089.4,2088.6,1.66818471]
[1771111197334,0.0011,2089.4,2088.6,1.19697404]
[1771111198135,0.0011,2089.4,2088.5,5.25910686]
[1771111198918,0.0011,2089.4,2088.6,0.47121067]
[1771111199440,0.0011,2089.4,2088.8,1.1]
[1771111199642,0.0011,2089.4,2088.8,1.57121067]
[1771111200422,0.0011,2089.4,2088.9,1.19680214]
[1771111200743,0.0011,2089.4,2089.0,0.47121067]
[1771111200940,0.0011,2089.4,2088.8,5.88735774]
[1771111200941,0.46384333,2089.4,2088.8,1.1]
[1771111201139,0.46384333,2089.4,2088.5,2.101]
[1771111201444,0.46384333,2089.4,2088.5,3.298031]
[1771111202014,0.46384333,2089.4,2088.4,0.0008]
[1771111202438,0.46274333,2089.2,2088.4,0.0008]
[1771111202633,0.46274333,2089.0,2088.4,0.0008]
[1771111202837,0.46274333,2089.0,2088.0,1.14811468]
[1771111203144,1.602,2089.1,2088.1,0.47121067]
[1771111203317,2.06474333,2089.1,2088.1,0.47121067]
[1771111203929,1.602,2089.1,2088.1,0.47121067]
[1771111204247,1.602,2089.1,2088.3,0.47121067]
[1771111204444,2.79870879,2089.1,2088.4,1.19708868]
[1771111204628,1.602,2089.1,2088.4,1.19708868]
[1771111205144,1.19763001,2089.4,2088.5,0.47121067]
[1771111206651,1.19763001,2089.4,2088.6,1.19697404]
[1771111206850,1.66037334,2089.4,2088.6,1.19697404]
[1771111207159,0.0011,2089.4,2088.6,1.19697404]
[1771111207569,0.0011,2089.4,2088.6,1.66818471]
[1771111207928,0.0011,2089.4,2088.7,0.47121067]
[1771111208558,0.0011,2089.4,2088.8,1.19685944]
[1771111211332,0.0011,2089.4,2088.8,1.66807011]
[1771111211563,0.0011,2089.4,2088.9,0.47121067]
[1771111212071,0.0011,2089.4,2088.8,1.19685944]
[1771111212891,0.0011,2089.4,2088.7,1.19687511]
[1771111214378,0.0011,2089.4,2088.6,4.99694415]
[1771111215080,0.48713196,2089.4,2088.5,7.09398692]
[1771111215284,1.68260497,2089.3,2088.5,7.09398692]
[1771111215593,0.48603196,2089.2,2088.5,7.09398692]
[1771111217041,0.48603196,2089.2,2088.5,3.29398692]
[1771111217254,0.48603196,2089.2,2088.5,3.29402811]
[1771111217646,1.19668756,2089.1,2088.5,3.29402811]
[1771111219873,1.68270048,2089.2,2088.5,3.29402811]
[1771111222575,0.0011,2089.4,2088.5,3.79195684]
[1771111223258,0.48713196,2089.4,2088.5,3.79195684]
[1771111223657,0.0011,2089.4,2088.7,0.49792873]
[1771111223856,0.0011,2089.4,2088.9,0.49792873]
[1771111227060,0.0011,2089.4,2089.0,1.19674485]
[1771111228966,0.0011,2089.4,2088.8,1.19685944]
[1771111230783,0.0011,2089.4,2088.8,1.69478817]
[1771111231592,0.0011,2089.4,2088.8,1.19685944]
[1771111234397,0.0011,2089.4,2088.8,1.69478817]
[1771111234876,0.0011,2089.4,2088.8,5.49478817]
[1771111235077,0.48713196,2089.4,2088.8,4.99685944]
[1771111235472,0.48713196,2089.4,2088.8,3.8]
[1771111235671,1.68260497,2089.3,2088.8,3.8]
[1771111236274,1.68260497,2089.3,2088.8,4.9968553]
[1771111238606,1.68260497,2089.3,2088.8,4.9968554]
[1771111239676,0.48603196,2089.2,2088.8,3.8]
[1771111240086,1.68266717,2089.2,2088.8,3.8]
[1771111240282,0.48603196,2089.2,2088.8,3.8]
[1771111240488,1.68266799,2089.2,2088.6,1.1969278]
[1771111241604,0.48102972,2089.1,2088.5,7.09402962]
[1771111242687,1.67772051,2089.1,2088.5,7.09402962]
[1771111243310,0.48102972,2089.1,2088.5,7.09402962]
[1771111243893,1.1966769,2089.2,2088.5,7.09402962]
[1771111244598,1.68139727,2089.3,2088.5,7.58289408]
[1771111245907,1.19658537,2089.3,2088.5,7.58289408]
[1771111246096,0.4848119,2089.2,2088.7,1.1]
[1771111246414,0.4848119,2089.2,2088.5,3.29402962]
[1771111247188,1.19668756,2089.1,2088.5,3.29402962]
[1771111247390,0.4848119,2089.0,2088.5,3.29402766]
[1771111247594,0.4848119,2089.0,2088.5,2.097]
[1771111248207,0.4848119,2089.0,2088.3,4.99711623]
[1771111248409,0.4848119,2089.0,2088.3,1.19711623]
[1771111249282,1.68161404,2088.9,2088.3,1.19711623]
[1771111249487,0.4848119,2088.8,2088.2,0.001]
[1771111251593,1.19691674,2088.7,2088.2,0.001]
[1771111251790,0.4848119,2088.6,2088.2,0.001]
[1771111253516,0.4848119,2088.6,2088.0,0.001]
[1771111254092,0.4848119,2088.4,2088.0,0.001]
[1771111256346,1.197146,2088.3,2088.0,0.001]
[1771111256522,1.6819579,2088.3,2088.0,0.001]
[1771111257221,0.4848119,2088.2,2088.0,0.001]
[1771111258435,0.4848119,2088.4,2088.0,0.001]
[1771111259256,1.19685944,2088.8,2088.0,0.001]
[1771111259257,0.4848119,2088.6,2088.0,0.001]
[1771111260816,1.19694126,2088.7,2088.0,0.48986446]
[1771111261010,1.68158887,2089.0,2088.0,0.48986446]
[1771111262010,0.4848119,2088.9,2088.0,0.48986446]
[1771111262752,1.68167134,2088.8,2088.1,1.19726066]
[1771111263137,0.4848119,2088.8,2088.1,1.19726066]
[1771111263349,1.68159979,2089.0,2088.2,0.48886446]
[1771111263567,0.4848119,2088.9,2088.2,0.48886446]
[1771111263841,1.19678789,2089.0,2088.2,0.48886446]
[1771111264056,2.17253974,2089.1,2088.2,0.48886446]
[1771111264209,0.9758119,2089.1,2088.2,0.48886446]
[1771111264767,0.9758119,2089.1,2088.4,0.48886446]
[1771111266753,2.17250659,2089.1,2088.4,1.19707168]
[1771111267053,0.4848119,2089.0,2088.3,1.19710584]
[1771111267455,0.4848119,2089.0,2088.2,1.68602265]
[1771111267649,0.4848119,2089.0,2088.2,1.19715819]
[1771111269064,0.4848119,2089.0,2088.1,4.78894781]
[1771111269065,1.68161404,2088.9,2088.1,4.78894781]
[1771111269965,0.4848119,2088.8,2088.1,8.58894781]
[1771111270168,0.4848119,2088.8,2088.1,4.99726066]
[1771111271472,1.19691674,2088.7,2088.1,4.99726066]
[1771111271854,4.78739394,2088.9,2088.1,4.99726066]
[1771111271855,1.19675033,2089.0,2088.2,0.48886446]
[1771111272348,0.9758119,2089.1,2088.2,0.48886446]
[1771111272553,2.1725053,2089.1,2088.2,0.48886446]
[1771111273264,0.48996785,2089.0,2088.2,0.48886446]
[1771111273469,1.68676999,2088.9,2088.3,1.197146]
[1771111274174,0.48996785,2088.9,2088.3,1.197146]
[1771111274552,0.0011,2089.2,2088.3,1.65818843]
[1771111274553,0.49106785,2089.2,2088.3,1.65818843]
[1771111274755,0.0011,2089.2,2088.4,0.46104243]
[1771111275068,0.0011,2089.2,2088.5,0.46104243]
[1771111275255,0.0011,2089.2,2088.6,0.46104243]
[1771111275451,0.0011,2089.2,2088.7,1.19691674]
[1771111276377,0.0011,2089.2,2088.6,1.19693502]
[1771111276559,0.49106785,2089.2,2088.4,1.65808662]
[1771111278404,0.48996785,2089.0,2088.4,1.19704419]
[1771111278611,0.48996785,2089.0,2088.3,1.19714389]
[1771111279843,1.19777338,2089.2,2088.4,0.46104243]
[1771111279978,1.68774123,2089.2,2088.4,0.46104243]
[1771111280611,1.68774123,2089.2,2088.5,1.19703136]
[1771111281522,0.48996785,2089.1,2088.2,4.78869554]
[1771111282674,0.48996785,2088.9,2088.2,4.78869554]
[1771111284890,1.19685944,2088.8,2088.2,4.78869554]
[1771111285097,1.68681143,2088.9,2088.2,4.78869554]
[1771111286625,0.48996785,2088.9,2088.2,4.78869554]
[1771111288118,1.68677539,2088.9,2088.2,4.78869554]
[1771111290230,0.48996785,2088.9,2088.2,4.78869554]
[1771111292035,1.68669901,2089.1,2088.3,0.46104243]
[1771111292338,0.48996785,2089.0,2088.4,1.19708868]
[1771111293100,0.48996785,2089.3,2088.4,3.8]
[1771111293629,0.28139814,2089.3,2088.4,3.8]
[1771111294635,0.48996785,2089.1,2088.4,3.8]
[1771111296432,0.48996785,2089.1,2088.3,4.99713692]
[1771111297036,0.48996785,2088.9,2088.3,4.99713692]
[1771111297640,5.83039607,2089.4,2088.3,5.45817935]
[1771111297641,1.19672775,2089.1,2088.3,5.45817935]
[1771111297836,1.6866956,2089.1,2088.3,5.45817935]
[1771111298239,0.48996785,2089.0,2088.3,5.45817935]
[1771111300337,1.19679979,2089.0,2088.3,5.45817935]
[1771111300521,3.07998319,2088.9,2088.3,5.45817935]
[1771111301826,3.07998319,2088.9,2088.2,3.8]
[1771111302233,3.07998319,2088.9,2088.1,3.28623916]
[1771111302432,3.07998319,2088.7,2088.1,2.089]
[1771111302935,1.19685944,2088.8,2088.2,3.04152387]
[1771111303443,4.31255156,2088.8,2088.2,3.04152387]
[1771111304243,1.19684147,2088.9,2088.2,3.04152387]
[1771111304438,3.11569212,2088.9,2088.3,1.197146]
[1771111304741,3.11569212,2088.9,2088.2,4.23872079]
[1771111305052,3.11569212,2088.9,2088.2,3.04152387]
[1771111305241,3.11569212,2088.8,2088.1,2.089]
[1771111306516,3.11569212,2088.6,2088.1,2.089]
[1771111307443,3.11569212,2088.6,2088.0,0.001]
[1771111309518,1.19703136,2088.5,2088.0,0.001]
[1771111314734,3.11569212,2088.5,2088.0,0.001]
[1771111317551,1.19708868,2088.4,2088.0,0.001]
[1771111317751,4.31276295,2088.5,2088.0,0.001]
[1771111321560,1.19707083,2088.5,2088.0,0.001]
[1771111321761,1.19707083,2088.5,2087.6,0.001]
[1771111321762,3.11569212,2088.1,2087.6,0.001]
[1771111321966,4.68769212,2088.0,2087.6,0.001]
[1771111322468,1.572,2088.0,2087.6,0.001]
[1771111323637,2.76932166,2088.0,2087.6,0.001]
[1771111323857,5.88501378,2088.0,2087.6,0.001]
[1771111324937,1.574,2088.4,2087.8,3.04152387]
[1771111325262,4.68969212,2088.4,2087.8,3.04152387]
[1771111325936,3.11569212,2088.8,2087.8,4.23894814]
[1771111326233,3.11569212,2088.6,2087.8,4.23894814]
[1771111327452,3.11569212,2088.6,2087.7,6.42573986]
[1771111327655,3.11569212,2088.6,2087.7,10.66475039]
[1771111328160,3.11569212,2088.4,2087.7,10.66475039]
[1771111328372,3.11569212,2088.4,2087.7,4.23901053]
[1771111328669,3.11569212,2088.4,2087.7,3.04152387]
[1771111328848,3.11569212,2088.4,2087.6,0.001]
[1771111329047,3.11569212,2088.2,2087.6,0.001]
[1771111330266,3.11569212,2088.0,2087.6,0.001]
[1771111331579,1.19726066,2088.1,2087.6,0.001]
[1771111332088,4.31295278,2088.1,2087.6,0.001]
[1771111332751,1.19724754,2088.2,2087.6,3.04252387]
[1771111333068,4.07375112,2088.2,2087.6,3.04252387]
[1771111333241,4.07375112,2088.2,2087.6,0.001]
[1771111333437,2.87650358,2088.1,2087.6,0.001]
[1771111334645,4.07377557,2088.1,2087.6,0.001]
[1771111335441,1.19727199,2088.1,2087.6,2.90173206]
[1771111336269,1.19724069,2088.2,2087.6,2.90173206]
[1771111337069,1.19703136,2088.5,2087.7,2.90073206]
[1771111337272,1.19703136,2088.5,2087.9,2.90073206]
[1771111338668,1.19701864,2088.6,2087.9,2.90073206]
[1771111338876,4.07352222,2088.6,2087.9,2.90073206]
[1771111339181,1.19701864,2088.6,2088.0,4.09805006]
[1771111339602,2.06795575,2088.7,2088.0,4.09805006]
[1771111340053,2.06795575,2088.7,2088.0,1.197318]
[1771111340254,2.06795575,2088.7,2088.1,2.90073206]
[1771111341380,2.87650358,2088.6,2088.0,1.197318]
[1771111343250,4.07353494,2088.5,2087.9,3.8]
[1771111343561,2.87650358,2088.4,2087.9,3.8]
[1771111343869,1.19703136,2088.5,2087.6,0.001]
[1771111343870,2.87650358,2088.2,2087.6,0.001]
[1771111345357,2.87650358,2088.0,2087.6,0.001]
[1771111349088,1.19735842,2088.0,2087.6,0.001]
[1771111349502,2.87650358,2087.9,2087.6,0.001]
[1771111350277,1.19735842,2088.0,2087.6,0.001]
[1771111353776,1.19735842,2088.0,2087.4,0.001]
[1771111353777,2.87650358,2087.9,2087.3,0.001]
[1771111354076,2.87650358,2087.7,2087.1,0.001]
[1771111355394,4.07364958,2088.3,2087.4,2.90073206]
[1771111355596,1.588,2088.1,2087.4,2.90073206]
[1771111356898,2.78526582,2088.1,2087.5,4.09833685]
[1771111358870,2.78526582,2088.1,2087.5,2.90073206]
[1771111359071,1.588,2088.1,2087.6,1.19754742]
[1771111359270,2.78526758,2088.1,2087.6,2.90073206]
[1771111359491,2.78526758,2088.1,2087.4,4.09834534]
[1771111361104,2.78526758,2088.1,2087.5,2.61241155]
[1771111361603,2.78526758,2088.1,2087.5,3.80998048]
[1771111362100,5.53406136,2088.1,2087.5,3.80998048]
[1771111362793,5.53406136,2088.1,2087.5,1.19756893]
[1771111364297,5.53406136,2088.1,2087.4,3.92960334]
[1771111365203,5.53406136,2088.1,2087.4,2.73198369]
[1771111365505,2.62091165,2088.0,2087.4,2.73198369]
[1771111365910,1.19737535,2087.9,2087.4,3.92964532]
[1771111366203,2.7852887,2088.1,2087.4,3.92964532]
[1771111366501,1.588,2088.1,2087.5,2.73198369]
[1771111366684,2.78526725,2088.1,2087.5,2.73198369]
[1771111369503,2.78526725,2088.1,2087.5,1.19755505]
[1771111369504,1.588,2088.1,2087.5,1.19755505]
[1771111369693,2.78526221,2088.1,2087.6,2.73198369]
[1771111370806,2.62091165,2088.0,2087.4,2.73198369]
[1771111372704,1.19737535,2087.9,2087.3,3.28667461]
[1771111372898,3.818287,2087.9,2087.3,2.089]
[1771111373882,3.818287,2087.9,2087.3,3.28671737]
[1771111374282,3.818287,2087.9,2087.3,6.01870106]
[1771111375306,1.19737535,2087.9,2087.3,3.28671737]
[1771111375510,2.78526095,2088.1,2087.4,2.73198369]
[1771111378013,2.78526095,2088.1,2087.5,3.92958848]
[1771111378413,1.19726095,2088.1,2087.5,3.92958848]
[1771111379944,1.19726095,2088.1,2087.2,5.20393193]
[1771111379945,2.62091165,2088.0,2087.2,5.20393193]
[1771111380096,2.62091165,2088.0,2087.3,2.73198369]
[1771111382014,2.62091165,2087.8,2087.1,1.19880504]
[1771111382210,3.818287,2087.9,2087.2,2.73198369]
[1771111383517,2.62091165,2087.8,2087.2,2.73198369]
[1771111384413,4.78950141,2088.0,2087.4,2.73198369]
[1771111384414,1.19734193,2088.0,2087.4,2.73198369]
[1771111384805,1.19729816,2088.1,2087.4,2.73198369]
[1771111385392,5.41516373,2088.2,2087.5,2.73198369]
[1771111385788,1.19725208,2088.2,2087.5,2.73198369]
[1771111386091,2.62091165,2087.6,2087.1,0.001]
[1771111386294,1.19766216,2087.4,2087.1,0.001]
[1771111386605,1.19766216,2087.4,2086.9,0.001]
[1771111387820,3.81857381,2087.4,2086.9,0.001]
[1771111390823,1.19766216,2087.4,2086.9,0.001]
[1771111393222,3.70897247,2087.4,2086.9,0.001]
[1771111394122,3.70897247,2087.4,2085.1,0.0920304]
[1771111394123,0.69854292,2086.7,2085.1,0.0920304]
[1771111394326,2.51131031,2086.4,2085.1,0.0920304]
[1771111394621,2.51131031,2086.2,2085.2,0.001]
[1771111394824,2.51131031,2085.9,2085.0,1.19903773]
[1771111395037,2.51131031,2085.7,2084.9,1.19909827]
[1771111395325,4.12731031,2085.7,2084.9,1.19909827]
[1771111395539,1.616,2085.7,2085.0,2.48072005]
[1771111395726,4.48968926,2085.8,2085.0,2.48072005]
[1771111396299,7.00099957,2085.8,2084.8,3.67983281]
[1771111396908,8.19963445,2085.8,2084.8,3.67983281]
[1771111397447,2.51131031,2085.7,2084.8,3.67983281]
[1771111398934,3.70995545,2085.7,2084.8,3.67983281]
[1771111399134,3.70995545,2085.7,2084.8,1.19911276]
[1771111399335,1.19864514,2085.7,2084.8,3.67983281]
[1771111400348,8.19961291,2085.8,2084.8,3.67983281]
[1771111400859,5.6883026,2085.8,2084.9,2.48072005]
[1771111401062,8.19961291,2085.8,2084.8,1.19915579]
[1771111401232,2.51131031,2085.7,2084.8,3.29315579]
[1771111401431,2.51131031,2085.7,2084.7,5.77390512]
[1771111404041,1.19869581,2085.6,2084.7,5.77390512]
[1771111406250,2.51131031,2085.5,2084.7,2.094]
[1771111406452,2.51131031,2085.5,2084.6,0.001]
[1771111406789,2.51131031,2085.4,2084.6,0.001]
[1771111406995,2.51131031,2085.2,2084.6,0.001]
[1771111408171,2.51131031,2085.4,2084.6,3.68097868]
[1771111408381,1.19886826,2085.3,2084.6,3.68097868]
[1771111410387,3.71015352,2085.4,2084.6,3.68097868]
[1771111410563,1.19877998,2085.5,2084.7,2.48072005]
[1771111411062,3.71009029,2085.5,2084.6,1.20025863]
[1771111412002,3.71017857,2085.3,2084.6,0.001]
[1771111412697,2.51131031,2085.2,2084.6,0.001]
[1771111414112,3.71029357,2085.1,2084.6,0.001]
[1771111414515,1.19881077,2085.4,2084.6,0.001]
[1771111414693,2.8117397,2085.6,2084.6,2.48172005]
[1771111415037,2.81169778,2085.6,2084.6,2.48172005]
[1771111415215,2.81169773,2085.6,2084.6,2.48172005]
[1771111416188,2.81169773,2085.6,2084.7,3.67993336]
[1771111417980,1.613,2085.6,2084.8,2.48072005]
[1771111418610,1.613,2085.6,2084.9,3.67981832]
[1771111418912,1.613,2085.6,2085.0,2.48072005]
[1771111419513,4.48968926,2085.8,2085.0,2.48072005]
[1771111419694,2.82710529,2085.7,2085.0,2.48072005]
[1771111420012,5.68827269,2085.8,2085.0,2.48072005]
[1771111420190,2.82712894,2085.7,2085.0,2.48072005]
[1771111420510,2.82712894,2085.6,2085.0,2.48072005]
[1771111420715,5.68827269,2085.8,2085.1,1.19898326]
[1771111420915,2.8302055,2085.7,2085.1,4.99898326]
[1771111421219,2.8302055,2085.6,2085.1,4.99898326]
[1771111421419,5.68827269,2085.8,2085.1,4.99898326]
[1771111421585,2.83378953,2085.7,2085.2,2.55750275]
[1771111421789,1.87517663,2085.6,2085.2,2.55750275]
[1771111421995,4.48968926,2085.8,2085.2,2.55750275]
[1771111423034,4.48968926,2085.8,2085.3,1.19886826]
[1771111423619,4.48968926,2085.8,2085.3,3.61267478]
[1771111423790,4.48968926,2085.8,2085.4,2.41380652]
[1771111424191,1.6121,2086.0,2085.4,2.41380652]
[1771111424402,1.19945521,2086.2,2085.4,2.41380652]
[1771111424692,2.58647281,2086.1,2085.3,5.884]
[1771111424918,2.58647281,2086.1,2085.6,0.0008]
[1771111425217,3.78493877,2086.0,2085.6,0.0008]
[1771111426719,2.58757281,2086.2,2085.6,0.0008]
[1771111426919,1.19843302,2086.1,2085.6,0.0008]
[1771111427624,1.1994541,2086.2,2085.6,0.0008]
[1771111428024,0.0011,2086.2,2085.6,0.0008]
[1771111429298,0.0011,2086.2,2085.6,2.41460652]
[1771111430310,2.81012336,2086.6,2085.7,2.41380652]
[1771111430507,5.39659617,2086.6,2085.7,2.41380652]
[1771111430706,5.39659617,2086.6,2085.6,0.0008]
[1771111430707,2.58647281,2086.5,2085.6,0.0008]
[1771111430905,2.58647281,2086.5,2085.8,0.0008]
[1771111431111,2.58647281,2086.5,2085.3,1.19883231]
[1771111431420,2.58647281,2086.3,2085.3,1.19883231]
[1771111431631,3.78469212,2086.5,2085.4,2.41380652]
[1771111432002,2.58647281,2086.4,2085.4,2.41380652]
[1771111433618,1.19829362,2086.3,2085.5,1.19875329]
[1771111433835,1.19829362,2086.3,2085.5,3.61255981]
[1771111433998,2.58647281,2086.4,2085.5,3.61255981]
[1771111434328,3.78471488,2086.4,2085.5,3.61255981]
[1771111435842,2.58647281,2086.3,2085.5,3.61255981]
[1771111435998,2.58647281,2086.3,2085.6,2.41380652]
[1771111436203,1.19824207,2086.4,2085.6,2.41380652]
[1771111436438,3.78469539,2086.5,2085.6,2.41380652]
[1771111436623,2.58647281,2086.4,2085.6,2.41380652]
[1771111437008,2.58647281,2086.4,2085.3,1.19883655]
[1771111437232,2.58647281,2086.4,2085.3,3.61264307]
[1771111438145,2.58647281,2086.2,2085.3,3.61264307]
[1771111438712,1.19829362,2086.3,2085.4,2.41380652]
[1771111439411,3.78475349,2086.4,2085.4,2.41380652]
[1771111440136,3.78475349,2086.4,2085.5,1.19875329]
[1771111440338,1.612,2086.6,2085.7,2.41380652]
[1771111440339,5.39659945,2086.6,2085.7,2.41380652]
[1771111440940,4.19847281,2086.6,2085.7,2.41380652]
[1771111441104,5.39660203,2086.6,2085.7,2.41380652]
[1771111441911,2.58647281,2086.5,2085.7,2.41380652]
[1771111442234,2.81012922,2086.6,2085.8,1.19858088]
[1771111442439,2.81012785,2086.6,2085.8,3.6123874]
[1771111443945,1.612,2086.6,2085.9,2.41380652]
[1771111444133,1.19916524,2086.7,2085.9,2.41380652]
[1771111444530,0.0011,2086.7,2086.0,3.61227248]
[1771111445744,0.0011,2086.7,2086.0,7.41227248]
[1771111446043,0.0011,2086.7,2086.1,6.21380652]
[1771111447245,0.0011,2086.7,2086.2,1.19835106]
[1771111447642,0.0011,2086.7,2086.0,3.8]
[1771111447846,2.58757281,2086.7,2086.0,3.8]
[1771111449441,2.58647281,2086.5,2086.0,3.8]
[1771111451755,3.78469792,2086.5,2085.9,1.19852327]
[1771111453051,3.78469792,2086.5,2085.8,1.19853957]
[1771111453632,2.31925374,2086.4,2085.7,4.79444279]
[1771111453833,2.31925374,2086.4,2085.7,8.59444279]
[1771111454851,2.32035374,2086.7,2085.8,2.40359183]
[1771111455952,3.51737508,2086.6,2085.9,1.19852341]
[1771111456925,3.51737508,2086.6,2085.9,3.60211524]
[1771111457540,3.51737508,2086.6,2085.9,7.40211524]
[1771111460164,2.31925374,2086.6,2085.9,7.40211524]
[1771111460334,0.0011,2086.7,2086.0,2.40359183]
[1771111460862,0.0011,2086.7,2086.1,3.60200034]
[1771111462331,0.0011,2086.7,2086.2,2.40359183]
[1771111462967,0.0011,2086.7,2086.3,3.60188545]
[1771111463130,0.0011,2086.9,2086.3,3.60188545]
[1771111463336,2.31925374,2087.4,2086.5,2.40359183]
[1771111463635,4.37997579,2087.3,2086.5,4.47759183]
[1771111464064,2.31925374,2087.2,2086.5,2.074]
[1771111464268,0.0011,2087.0,2086.5,2.074]
[1771111464836,0.0011,2087.0,2086.6,1.19812134]
[1771111468455,0.0011,2087.0,2086.6,3.60171317]
[1771111468660,0.0011,2087.0,2086.7,2.40359183]
[1771111468960,0.0011,2087.2,2086.8,3.60157597]
[1771111469141,0.0011,2087.2,2086.8,1.19798414]
[1771111469745,0.0011,2087.2,2086.6,3.6016685]
[1771111469960,0.0011,2087.2,2086.6,1.19807667]
[1771111469961,2.32035374,2087.2,2086.6,1.19807667]
[1771111470350,2.32035374,2087.2,2086.4,4.99819184]
[1771111470936,3.51818544,2087.2,2086.4,4.99819184]
[1771111471143,3.51818544,2087.2,2086.4,7.40178367]
[1771111471365,1.1989317,2087.2,2086.5,2.40359183]
[1771111471572,3.51814114,2087.2,2086.5,2.40359183]
[1771111472350,0.0011,2087.2,2086.5,2.40359183]
[1771111473142,0.0011,2087.2,2086.6,3.60171317]
[1771111473346,0.0011,2087.2,2086.7,2.40359183]
[1771111475492,0.0011,2087.2,2086.8,1.19800651]
[1771111475790,2.32035374,2087.2,2086.4,4.99819235]
[1771111477754,1.19783431,2087.1,2086.4,4.99819235]
[1771111478075,1.19783431,2087.1,2086.4,1.19819235]
[1771111480976,1.19783431,2087.1,2086.4,3.54671198]
[1771111481484,3.5128368,2087.1,2086.4,3.54671198]
[1771111483093,2.31500249,2087.1,2086.4,3.54671198]
[1771111483265,1.19891798,2087.2,2086.5,2.33265699]
[1771111483763,1.19891798,2087.2,2086.5,6.13265699]
[1771111484554,0.0011,2087.2,2086.6,2.33265699]
[1771111485193,0.0011,2087.2,2086.7,3.53072091]
[1771111485484,0.0011,2087.2,2086.8,2.33265699]
[1771111487192,0.0011,2087.2,2086.9,1.19794911]
[1771111487403,0.0011,2087.2,2086.8,3.53062492]
[1771111487767,0.0011,2087.2,2086.8,1.19796793]
[1771111489188,2.39052073,2087.2,2086.8,1.19796793]
[1771111489389,2.39052073,2087.2,2086.6,1.19812134]
[1771111489868,0.0011,2087.2,2086.7,2.33265699]
[1771111490270,0.0011,2087.2,2086.8,2.33265699]
[1771111491062,0.0011,2087.5,2086.8,2.33265699]
[1771111491685,0.0011,2087.5,2087.0,2.33265699]
[1771111493792,0.0011,2087.5,2087.1,1.19783431]
[1771111495198,0.0011,2087.7,2087.2,2.33265699]
[1771111495797,0.0011,2087.7,2087.3,1.19771954]
[1771111500771,0.0011,2087.7,2086.9,4.99790329]
[1771111500772,2.39052073,2087.7,2086.9,4.99790329]
[1771111501081,2.39052073,2087.7,2086.9,7.08490329]
[1771111501597,2.39052073,2087.7,2086.9,3.8]
[1771111501775,2.39052073,2087.7,2086.9,4.99794539]
[1771111502094,2.39052073,2087.7,2086.9,3.8]
[1771111502788,2.38942073,2087.5,2086.9,3.8]
[1771111504296,2.38942073,2087.5,2086.8,4.99799125]
[1771111505000,1.19764896,2087.5,2086.8,7.33064824]
[1771111505199,1.19764896,2087.5,2086.8,4.99799125]
[1771111505404,1.19764896,2087.5,2086.9,2.33265699]
[1771111505777,2.38942073,2087.6,2086.9,2.33265699]
[1771111506178,0.0011,2087.7,2086.9,2.33265699]
[1771111506407,0.0011,2087.7,2087.0,2.33265699]
[1771111506790,0.0011,2087.7,2087.1,1.19783431]
[1771111506978,0.0011,2087.7,2087.1,3.5304913]
[1771111508083,0.0011,2087.7,2087.2,2.33265699]
[1771111509113,0.0011,2087.7,2087.3,5.61737653]
[1771111511212,0.0011,2087.9,2087.4,2.33265699]
[1771111513921,0.0011,2087.9,2087.5,1.19760479]
[1771111516420,2.16624692,2087.9,2087.4,1.19761691]
[1771111518025,0.0011,2088.0,2087.6,3.29107918]
[1771111518224,0.0011,2088.0,2087.6,1.19754742]
[1771111520233,0.0011,2088.0,2087.5,4.79018969]
[1771111520807,0.0011,2088.0,2087.5,6.88372145]
[1771111521230,0.0011,2088.2,2087.7,2.09353176]
[1771111521418,0.0011,2088.2,2087.8,2.09353176]
[1771111521908,0.0011,2088.2,2087.7,2.096]
[1771111522228,0.0011,2088.2,2087.9,1.19737535]
[1771111522434,0.0011,2088.3,2087.9,3.29090711]
[1771111524130,2.16624692,2088.3,2087.8,1.1973876]
[1771111527709,0.0011,2088.3,2087.8,3.29091936]
[1771111527909,0.0011,2088.3,2087.9,2.09353176]
[1771111529145,0.0011,2088.3,2088.0,1.197318]
[1771111530032,0.0011,2088.5,2088.0,3.29084976]
[1771111530345,0.0011,2088.8,2088.2,2.09353176]